Cogmind - Beta 15 @@@ ROGUE MODE // 2025.07.14 @ 12:30:42 Player: daxter767676 Result: Destroyed by D-53 Grenadier with Mini Grenade Launcher Performance ------------- Evolutions (0) 0 Regions Visited (3) 600 Robots Destroyed (15) 75 Value Destroyed (210) 210 Prototype IDs (11) 220 Alien Tech Used (0) 0 Bonus (0) 0 TOTAL SCORE: 1105 Bonus ------- None Cogmind --------- Core Integrity 0/250 Matter 235/300 Energy 100/100 System Corruption 0% Temperature Cool (0) Movement Core (50) Location -8/Recycling Parts ------- > --- POWER (1) -------- (None) > --- PROPULSION (2) --- Flight Unit > --- UTILITY (2) ------ Disposable Heat Sink > --- WEAPON (2) ------- Mace > --- INVENTORY (5) ---- Subdweller Power Source Power Bank Subdweller Shrapnel Launcher Multitool Mace Peak State ------------ > --- POWER ------------ Light Ion Engine > --- PROPULSION ------- Wheel Wheel > --- UTILITY ---------- Improved Terrain Scanner Improved Terrain Scanner > --- WEAPON ----------- Small Laser Light Assault Rifle > --- INVENTORY -------- Light Ion Engine Wheel Wheel Assault Rifle Mining Laser [Rating: 11] Favorites ----------- Power Light Ion Engine Engine Light Ion Engine Propulsion Wheel Leg Aluminum Leg Wheel Wheel Flight Unit Flight Unit Utility Improved Terrain Scanner Device Improved Terrain Scanner Storage Small Storage Unit Weapon Light Assault Rifle Energy Gun Small Laser Ballistic Gun Light Assault Rifle Launcher Subdweller Shrapnel Launcher Special Weapon Mining Laser Impact Weapon Mace Build | -11 -10 -10 -8 ------- Run | Yrd Mat Sub Rec Slots Evolved . | . . . . Power . | . . . . Propulsion . | . . . . Utility . | . . . . Weapon . | . . . . Parts Attached 20 | 8 2 9 1 Power 1 | . . 1 . Engine 1 | . . 1 . Core . | . . . . Reactor . | . . . . Propulsion 9 | 5 . 4 . Treads . | . . . . Leg . | . . . . Wheel 8 | 5 . 3 . Hover . | . . . . Flight 1 | . . 1 . Utility 5 | 3 1 1 . Device 5 | 3 1 1 . Storage . | . . . . Processor . | . . . . Hackware . | . . . . Protection . | . . . . Artifact . | . . . . Weapon 5 | . 1 3 1 Energy Gun 2 | . . 2 . Energy Cannon . | . . . . Ballistic Gun . | . . . . Ballistic Cannon . | . . . . Launcher 1 | . . 1 . Special Weapon 1 | . 1 . . Impact Weapon 1 | . . . 1 Slashing Weapon . | . . . . Piercing Weapon . | . . . . Special Melee Weapon . | . . . . Unidentified Prototypes . | . . . . Parts Lost 10 | . . 10 . Power 1 | . . 1 . Propulsion 5 | . . 5 . Utility 2 | . . 2 . Weapon 2 | . . 2 . Highest Loss Streak 7 | . . 7 . To Critical Strikes . | . . . . Average Backups 5 | 5 5 4 4 Power 1 | 1 1 1 1 Propulsion 1 | 2 2 1 . Utility . | . . . 1 Weapon 1 | 1 2 1 1 Tool/Special . | . . . . Unused Backups 16 | 10 . 3 3 Power 4 | 2 . 1 1 Propulsion 4 | 4 . . . Utility 2 | 1 . . 1 Weapon 5 | 3 . 2 . Tool/Special 1 | . . . 1 Average Slot Usage (%) 94 | . 99 94 32 Engine 13 | . 14 13 . Wheel 25 | . 28 25 . Device 26 | . 27 26 14 Energy Gun 6 | . 6 6 . Ballistic Gun 13 | . 14 13 . Special Weapon 7 | . 7 7 . Peak Build Rating 11 | 11 11 11 6 Average Rating 9 | 8 9 9 5 On Entrance 7 | 6 11 9 4 Naked Turns . | . . . . Heaviest Build 11 | 11 7 9 3 Greatest Support 26 | 26 20 20 4 Greatest Overweight (x) 2 | . . 2 . Average Overweight (x) . | . . . . Largest Inventory Capacity 8 | 8 5 5 5 Average Capacity 5 | 5 5 5 5 Most Carried 6 | 6 5 5 5 Average Carried 4 | 5 5 4 4 Final Capacity 5 | 5 5 5 5 Final Carried 5 | 5 5 4 5 Class Distribution -------------------- 93% | Scavenger-Mutant 6% | Mutant Dominant Class ---------------- Scavenger-Mutant | -10/Materials Scavenger-Mutant | -10/Subcaves Scavenger-Mutant | -8/Recycling Resources | -11 -10 -10 -8 ----------- Run | Yrd Mat Sub Rec Matter Collected 423 | 306 24 93 . Remotely . | . . . . Salvage Created 399 | 217 . 182 . Parts 29 | 18 . 11 . Haulers Intercepted . | . . . . Recyclers Shooed 1 | 1 . . . Parts Field Recycled . | . . . . Retrieved Matter . | . . . . Parts Self-Destructed 6 | . . 6 . Prevented . | . . . . Kills | -11 -10 -10 -8 ------- Run | Yrd Mat Sub Rec Combat Hostiles Destroyed 7 | . . 7 . Guns 5 | . . 5 . AOE 2 | . . 2 . Classes Destroyed 6 | 3 . 3 . Worker 2 | 2 . . . Tunneler 5 | 5 . . . Recycler 1 | 1 . . . Swarmer 4 | . . 4 . Grunt 1 | . . 1 . Subdweller 2 | . . 2 . Best Kill Streak 4 | 3 . 4 . Combat Bots Only 4 | . . 4 . Max Kills in Single Turn 2 | 1 . 2 . Gunslinging . | . . . . Exploded 2 | . . 2 . Melee . | . . . . Uniques/NPCs Destroyed . | . . . . Combat | -11 -10 -10 -8 -------- Run | Yrd Mat Sub Rec Hostile Shots Fired 105 | . . 101 4 Missed 31 | . . 28 3 Hits 74 | . . 73 1 Projectile 74 | . . 73 1 AOE 1 | . . . 1 Critical Strikes 1 | . . 1 . Damage Taken 816 | . . 798 18 Core 250 | . . 232 18 Absorbed by Shields . | . . . . Core Remaining (%) 100 | 100 . . . Volleys Fired 82 | 26 11 45 . Largest 2 | 2 2 2 . Hottest 120 | 60 100 120 . Shots Fired 126 | 50 12 64 . Gun 106 | 50 5 51 . Cannon . | . . . . Launcher 2 | . . 2 . Special 18 | . 7 11 . Kinetic 66 | 26 4 36 . Thermal 60 | 24 8 28 . Explosive . | . . . . Electromagnetic . | . . . . Robot Hit Streak 17 | 5 2 17 . Robot Miss Streak 5 | 3 3 5 . Penetration Max . | . . . . Secondary Targets . | . . . . Shots Hit Robots 66 | 26 2 38 . Core Hits 31 | 14 2 15 . Critical Kills . | . . . . Critical Parts Destroyed . | . . . . Critical Strikes 1 | . . 1 . Burn 1 | . . 1 . Melee Attacks . | . . . . Impact . | . . . . Slashing . | . . . . Piercing . | . . . . Sneak Attacks . | . . . . Combat Hostiles . | . . . . Follow-up Attacks . | . . . . Damage Inflicted 872 | 233 13 626 . Guns 671 | 233 13 425 . Cannons . | . . . . Explosions 201 | . . 201 . Melee . | . . . . Ramming . | . . . . Kinetic 570 | 158 13 399 . Thermal 302 | 75 . 227 . Explosive . | . . . . Electromagnetic . | . . . . Impact . | . . . . Slashing . | . . . . Piercing . | . . . . Highest Corruption . | . . . . Average Corruption . | . . . . Corruption Purged . | . . . . Corruption Blocked . | . . . . Overload Shots . | . . . . Overflow Damage 42 | . . 42 . Projectiles . | . . . . Explosions 42 | . . 42 . Melee . | . . . . Knockbacks . | . . . . Impact . | . . . . Kinetic . | . . . . Secondary . | . . . . Self-Inflicted Damage 52 | . . 52 . Shots 2 | . . 2 . Rammed . | . . . . Targets Rammed . | . . . . Kicked . | . . . . Crushed . | . . . . Highest Temperature 60 | 60 20 17 . Average Temperature 18 | 26 12 4 . Received Heat Transfer 114 | . . 114 . Siege Activations . | . . . . Martial Activations . | . . . . Shielding Activations . | . . . . Robots Disrupted . | . . . . Combat Hostiles . | . . . . Robots Corrupted . | . . . . Combat Hostiles . | . . . . Parts Fried . | . . . . Impact Corruptions . | . . . . Robots Melted . | . . . . Combat Hostiles . | . . . . Parts Melted . | . . . . Heat Transferred 756 | 175 . 581 . Parts Sabotaged . | . . . . Parts Stolen . | . . . . Parts Stripped . | . . . . Power Chain Reactions . | . . . . Alert | -11 -10 -10 -8 ------- Run | Yrd Mat Sub Rec Maximum Alert Level . | . . . . Low Security (%) 100 | 100 100 . 100 Level 1 . | . . . . Level 2 . | . . . . Level 3 . | . . . . Level 4 . | . . . . Level 5 . | . . . . High Security . | . . . . Max Security . | . . . . Peak Influence 24 | 15 5 . 24 Initial 18 | . . . 18 Average 1 | 2 . . 19 Influence Increases 213 | 40 12 155 6 Destroy 0b10 Robot/C 100 | . . 100 . Destroy 0b10 Robot/NC 40 | 40 . . . Destroy Leader 10 | . . 10 . Successful Hack 11 | . 5 . 6 Destroy Structure 7 | . 7 . . Lose Combat Pursuer 45 | . . 45 . Influence Decreases 199 | 40 12 116 31 Entered New Map 21 | . . . 21 Time Decay 108 | 40 12 46 10 Lost Part 70 | . . 70 . Squads Dispatched 1 | . 1 . . Investigation . | . . . . Extermination . | . . . . Reinforcement 1 | . 1 . . Assault . | . . . . Garrison . | . . . . Intercept . | . . . . Searches Triggered . | . . . . Construction Impeded . | . . . . Haulers Reinforced . | . . . . Active Scanning Responses . | . . . . Cargo Convoy Interrupts . | . . . . Stealth | -11 -10 -10 -8 --------- Run | Yrd Mat Sub Rec Distress Signals . | . . . . Communications Jammed . | . . . . Distress Signals . | . . . . Times Spotted 18 | . 3 12 3 Peak Tracking Total 6 | . 2 6 1 Tactical Retreats 2 | . . 2 . Traps | -11 -10 -10 -8 ------- Run | Yrd Mat Sub Rec Traps Triggered . | . . . . Indirectly . | . . . . Trap Hack Attempts . | . . . . Triggered . | . . . . Disarmed . | . . . . Reprogrammed . | . . . . Reused . | . . . . Traps Extracted . | . . . . Installed . | . . . . Triggered . | . . . . Machines | -11 -10 -10 -8 ---------- Run | Yrd Mat Sub Rec Machines Disabled 2 | . . 2 . Max in Single Turn 1 | . . 1 . Machines Repaired . | . . . . Machines Dismantled . | . . . . Machines Sabotaged . | . . . . Overloaded Fab Kills . | . . . . Hacking | -11 -10 -10 -8 --------- Run | Yrd Mat Sub Rec Machines Accessed 3 | . 1 1 1 Terminals 1 | . 1 . . Fabricators . | . . . . Repair Stations . | . . . . Recycling Units 1 | . . . 1 Scanalyzers . | . . . . Garrison Access . | . . . . Total Hacks 16 | . 4 9 3 Successful 12 | . 2 9 1 Failed 4 | . 2 . 2 Catastrophic . | . . . . Database Lockouts . | . . . . Manual 6 | . 3 . 3 Terminals 4 | . 4 . . Fabricators . | . . . . Repair Stations . | . . . . Recycling Units 3 | . . . 3 Scanalyzers . | . . . . Garrison Access . | . . . . Terminal Hacks 9 | . . 9 . Record 8 | . . 8 . Proto ID Catalog 1 | . . 1 . Fabricator Hacks . | . . . . Repair Station Hacks . | . . . . Recycling Unit Hacks . | . . . . Scanalyzer . | . . . . Garrison Access Hacks . | . . . . Unauthorized Hacks 3 | . 2 . 1 Terminals 2 | . 2 . . Botnet 1 | . 1 . . Skim 1 | . 1 . . Fabricators . | . . . . Repair Stations . | . . . . Recycling Units 1 | . . . 1 Mask 1 | . . . 1 Scanalyzers . | . . . . Garrison Access . | . . . . Data Cores Recovered . | . . . . Used . | . . . . Hacking Detections 2 | . 1 . 1 Full Trace Events . | . . . . Feedback Events . | . . . . Feedback Blocked . | . . . . Robot Schematics Acquired . | . . . . Robots Built . | . . . . Authchips . | . . . . Time . | . . . . Total Robot Build Rating . | . . . . Part Schematics Acquired . | . . . . Parts Built . | . . . . Authchips . | . . . . Time . | . . . . Total Part Build Rating . | . . . . Parts Repaired . | . . . . Time . | . . . . Parts Recycled . | . . . . Recycled Matter . | . . . . Retrieved Matter . | . . . . Retrieved Components . | . . . . Parts Scanalyzed . | . . . . Part Schematics Acquired . | . . . . Parts Damaged . | . . . . Bothacking | -11 -10 -10 -8 ------------ Run | Yrd Mat Sub Rec Used RIF Installer . | . . . . Robots Hacked . | . . . . Non-combat . | . . . . Combat . | . . . . Robot Hacks Applied . | . . . . Relay Couplers Released . | . . . . Fabnet Peak Effective % . | . . . . Robots Rewired 1 | . . . 1 Allies Hacked . | . . . . Hacks Repelled . | . . . . Allies | -11 -10 -10 -8 -------- Run | Yrd Mat Sub Rec Total Allies 1 | . . . 1 Largest Group 1 | . . . 1 Highest-Rated Group 10 | . . . 10 Highest-Rated Ally 10 | . . . 10 Total Orders . | . . . . Ally Attacks . | . . . . Total Damage . | . . . . Kills . | . . . . Allies Corrupted . | . . . . Allies Melted . | . . . . Intel | -11 -10 -10 -8 ------- Run | Yrd Mat Sub Rec Active Infowar (turns) 978 | 170 342 466 . Sensors 416 | . 192 224 . Terrain 978 | 170 342 466 . Seismic 148 | 148 . . . Robot Analysis Total . | . . . . Derelict Logs Recovered . | . . . . Drone Launches . | . . . . Drone Recoveries . | . . . . Exploration | -11 -10 -10 -8 ------------- Run | Yrd Mat Sub Rec Turns Passed 1065 | 209 342 489 25 Spaces Moved 774 | 138 181 419 36 Core 5 | . . 5 . Treads . | . . . . Legs 20 | 20 . . . Wheels 703 | 118 181 404 . Hover . | . . . . Flight 46 | . . 10 36 Fastest Speed 40 | 80 80 40 40 Average Speed 78 | 87 80 79 40 Slowest Speed 150 | 120 80 150 40 Overloaded Moves . | . . . . Propulsion Burnouts . | . . . . Robots Hopped 2 | . . . 2 Potential Cave-ins . | . . . . Cave-ins Triggered . | . . . . Exploration Rate (%) 17 | 5 25 30 10 Regions Visited 3 Branch Regions 2 Pre-discovered Areas . | . . . . Known Exits Taken . | . . . . Unknown Exits Taken 3 | 1 1 1 . Scrap Searched . | . . . . Spaces Dug 7 | . 7 . . Terrain Destroyed 38 | . 7 31 . Melee . | . . . . Projectile 7 | . 7 . . AOE 31 | . . 31 . Terrain Rammed . | . . . . Walls Destroyed . | . . . . Machines Disabled . | . . . . Actions | -11 -10 -10 -8 --------- Run | Yrd Mat Sub Rec Total 1076 | 186 352 494 44 Wait 168 | . 158 10 . Move 767 | 137 180 418 32 Hop 2 | . . . 2 Pick Up 9 | 4 . 4 1 Fast Attach 10 | 5 1 3 1 Attach 3 | . . 3 . Detach 1 | . . 1 . Swap 10 | 3 1 6 . Drop 16 | 11 1 4 . Fire 82 | 26 11 45 . Melee . | . . . . Ram . | . . . . Kick . | . . . . Crush . | . . . . Escape Stasis . | . . . . Rewire 8 | . . . 8 Trap . | . . . . Miscellaneous . | . . . . Route ------- -11/Scrapyard -10/Materials (discovered 2 exits: [Min] / *Sub) -10/Subcaves -8/Recycling History --------- Turn | Location | Event 1 | -11/Scrapyard | Discovered new exit (range 1) 210 | -11/Scrapyard | Entered Materials 308 | -10/Materials | Build established: Scavenger-Mutant 314 | -10/Materials | Discovered new exit (range 4) 479 | -10/Materials | Discovered new exit (range 15) 552 | -10/Materials | Entered Subcaves 553 | -10/Subcaves | Approached by a straggling Scientist 686 | -10/Subcaves | A swath of the cavern ceiling suddenly collapsed 756 | -10/Subcaves | Visited 4L-MR0's lab 807 | -10/Subcaves | Lost 3 parts (2n1u) 819 | -10/Subcaves | Found Power Bank 952 | -10/Subcaves | Shifting Twisted Machinery released Flamer 953 | -10/Subcaves | Shifting Twisted Machinery released Sub. Shrapnel Launcher 1014 | -10/Subcaves | Core integrity fell below 50% 1034 | -10/Subcaves | Discovered new exit (range 10) 1036 | -10/Subcaves | Core integrity fell below 20% 1041 | -10/Subcaves | Entered Recycling 1060 | -8/Recycling | Lost 7 parts (1p3n1u2w) 1066 | -8/Recycling | Destroyed by D-53 Grenadier with Mini Grenade Launcher Last Messages --------------- 01031_ S-10 Pest destroyed. 01034_ Lgt. Assault Rifle fries itself beyond repair. 01034_ EXIT=FOUND 01035_ Acquired Flight Unit. LOCATION=UNKNOWN GOAL=ESCAPE 01048_ Connecting with Recycling Unit... 01048_ Current location identified: Recycling >>Trojan(Mask) Trojan loaded successfully. Testing... Masking routine running. 01049_ Y-45 Defender springs to life. 01051_ Acquired Mace. 01058_ Attempting to rewire A-02 Transporter. 01063_ A-02 Transporter rewired. 01064_ Attempting to rewire I-25 Savior. 01066_ D-53 Grenadier springs to life. Map ----- +----------------------------------------------------+ | | | | | | | | | | | | | | | | | | | | | ?????????????????????????????????????????????????? | | ?????????????????????????????????????????????????? | | ?????????????????????????????????????????????????? | | ?????????????????????????????????????????????????? | | ?????????????????????????????????????????????????? | | ?????????????????????????????????????????????????? | | ?????????????????????????????????????????????????? | | ?????????????????????????????????????????????????? | | ?????????????????????????????????????????????????? | | ?????????????????????????????????????????????????? | | ?????????????????????????????????????????????????? | | ?????????????????????????????????????????????????? | | ??????????????###############????????????????????? | | ??????????????#ibl Y]ir #????????????????????? | | ??????????????#!r taYd k#????????????????????? | | ??????????????# ! i@! #??????????######????? | | ??????????????#gsad %![!r !%#?????###### #????? | | ??????????????#######+###a###?????#"""## #????? | | ?????????????????### ## #???#####"Y"## #????? | | ?????????? #???# ##???? | | ?????????????????### ## #???# #???? | | ????????????????????##??# ##### ##???? | | ????????????????????????# #????? | | ????????????????????????#### /######### #????? | | ???????????????????????????#// #???????# #????? | | ???????????????????????????#####??###### #????? | | ??????????????????????????????????# ##+##+####?? | | ??????????????????????????????????# # #?? | | ??????????????????????????????????# # #?? | | ??????????????????????????????????# # #?? | | ??????????????????????????????????# # #?? | | ??????????????????????????????????# + #?? | | ??????????????????????????????????# # #?? | | ??????????????????????????????????# # #?? | | ??????????????????????????????????+ + #? | | ??????????????????????????????????# # ##? | | ??????????????????????????????????# ##########?? | | ??????????????????????????????????# #??????????? | | ??????????????????????????????????# #??????????? | | ??????????????????????????????????# #??????????? | +----------------------------------------------------+ Best States ------------- Heat Dissipation 25 Coolant Potential 50 Energy Generation 10 Energy Capacity 125 Matter Stores 300 Matter Capacity 300 Sight Range 16 Robot Scan Range 14 Terrain Scan Range 16 Terrain Scan Density 10 Evasion (%) 62 Item Schematics ----------------- None Robot Schematics ------------------ None Fabricated ------------ Nothing Repaired ---------- Nothing Alien Tech Used ----------------- None Achievements -------------- None Challenges ------------ None Game ------ Seed ShieldZioniteMount Manual? 0 Play Time 00:28:50 Cumulative 140.6 hours Start 2025.07.14 @ 09:44:01 End 2025.07.14 @ 12:30:42 Sessions 1 Manual Loads 0 Difficulty Rogue Special Mode None Game No. 140 Rogue 138 Adventurer 2 Explorer 0 Win Type - Total 0 Types 0/0/0/0/0/0/0/0/0/0 Lore% 61 Gallery% 56 Achievement% 44 Wizard Run 0 Options --------- Layout 2 ASCII 0 Keyboard 1 Movement Numpad Keybinds 0 Fullscreen 1 Font 48/Smallcaps Map View 50x66 Zoom Use 0% Tactical HUD 1 Map Filters NONE Filters NONE Steam 1 RUN: 3db89252-4f73-4b3c-904e-feec0c0ddc66